fUSD/lending_fUSD_20250511
["ID","MTS","AMOUNT","RATE_DAILY","PERIOD"]
[360689275,1746929467530,-400.0,0.00019996,2]
[360689276,1746929467542,-500.57817881,0.00019996,2]
[360689277,1746929467551,-510.14,0.00019996,2]
[360689278,1746929467560,-400.0,0.00019996,2]
[360689279,1746929467570,-400.0,0.00019996,2]
[360689280,1746929467580,-400.0,0.00019996,2]
[360689281,1746929467590,-400.0,0.00019996,2]
[360689282,1746929467599,-400.0,0.00019996,2]
[360689283,1746929467609,-469.57,0.00019996,2]
[360689284,1746929467619,-469.57,0.00019996,2]
[360689285,1746929467628,-469.57,0.00019996,2]
[360689286,1746929467637,-400.0,0.00019996,2]
[360689287,1746929467646,-400.0,0.00019996,2]
[360689288,1746929467655,-464.54,0.00019996,2]
[360689289,1746929467665,-400.0,0.00019996,2]
[360689290,1746929467674,-400.0,0.00019996,2]
[360689291,1746929467683,-251.7,0.00019996,2]
[360689292,1746929467695,-400.0,0.00019996,2]
[360689293,1746929467704,-400.0,0.00019996,2]
[360689294,1746929467713,-400.0,0.00019996,2]
[360689295,1746929467722,-400.0,0.00019996,2]
[360689296,1746929467732,-400.0,0.00019996,2]
[360689297,1746929467741,-1799.822809,0.00019996,2]
[360689298,1746929467750,-672.34,0.00019996,2]
[360689299,1746929467759,-494.69,0.00019996,2]
[360689300,1746929467768,-1799.822809,0.00019996,2]
[360689301,1746929467778,-400.0,0.00019996,2]
[360689302,1746929467787,-171.35,0.00019996,2]
[360689303,1746929467797,-400.0,0.00019996,2]
[360689304,1746929467807,-521.91404105,0.00019996,2]
[360689305,1746929467817,-422.467261,0.00019996,2]
[360689306,1746929467827,-400.0,0.00019996,2]
[360689307,1746929467837,-151.0,0.00019996,2]
[360689308,1746929467847,-400.0,0.00019996,2]
[360689309,1746929467856,-1677.61,0.00019996,2]
[360689310,1746929467865,-422.467261,0.00019996,2]
[360689311,1746929467875,-497.73,0.00019996,2]
[360689312,1746929467884,-497.73,0.00019996,2]
[360689313,1746929467894,-497.73,0.00019996,2]
[360689314,1746929467904,-400.0,0.00019996,2]
[360689315,1746929467917,-151.0,0.00019996,2]
[360689316,1746929467926,-592.98,0.00019996,2]
[360689317,1746929467936,-400.0,0.00019996,2]
[360689318,1746929467948,-485.60249008,0.00019996,2]
[360689319,1746929467957,-400.0,0.00019996,2]
[360689320,1746929467967,-400.0,0.00019996,2]
[360689321,1746929467976,-151.0,0.00019996,2]
[360689322,1746929467986,-1969.27,0.00019996,2]
[360689323,1746929467998,-400.0,0.00019996,2]
[360689324,1746929468009,-400.0,0.00019996,2]
[360689325,1746929468019,-655.17,0.00019996,2]
[360689326,1746929468028,-400.0,0.00019996,2]
[360689327,1746929468038,-930.04,0.00019996,2]
[360689328,1746929468047,-400.0,0.00019996,2]
[360689329,1746929468056,-542.69,0.00019996,2]
[360689330,1746929468066,-542.69,0.00019996,2]
[360689331,1746929468075,-542.69,0.00019996,2]
[360689332,1746929468084,-436.82,0.00019996,2]
[360689333,1746929468093,-3740.71,0.00019996,2]
[360689334,1746929468103,-553.01,0.00019996,2]
[360689335,1746929468111,-470.05,0.00019997,2]
[360689336,1746929468120,-425.56807831,0.00019997,2]
[360689337,1746929468130,-400.0,0.00019997,2]
[360689338,1746929468139,-499.31,0.00019997,2]
[360689339,1746929468148,-400.0,0.00019997,2]
[360689340,1746929468158,-418.89718204,0.00019997,2]
[360689341,1746929468167,-400.0,0.00019997,2]
[360689342,1746929468176,-400.0,0.00019997,2]
[360689343,1746929468185,-400.0,0.00019997,2]
[360689344,1746929468195,-400.0,0.00019997,2]
[360689345,1746929468205,-419.58,0.00019997,2]
[360689346,1746929468216,-400.0,0.00019997,2]
[360689347,1746929468225,-400.0,0.00019997,2]
[360689348,1746929468235,-152.94086842,0.00019997,2]
[360689349,1746929468244,-280.548663,0.00019997,2]
[360689350,1746929468254,-151.0,0.00019997,2]
[360689351,1746929468263,-558.53,0.00019997,2]
[360689352,1746929468273,-373.99708703,0.00019997,2]
[360689353,1746929468282,-400.0,0.00019997,2]
[360689354,1746929468291,-468.24,0.00019997,2]
[360689355,1746929468301,-492.36,0.00019997,2]
[360689356,1746929468311,-492.36,0.00019997,2]
[360689357,1746929468320,-492.36,0.00019997,2]
[360689358,1746929468330,-492.36,0.00019997,2]
[360689359,1746929468339,-151.0,0.00019997,2]
[360689360,1746929468349,-400.0,0.00019997,2]
[360689361,1746929468358,-400.0,0.00019997,2]
[360689362,1746929468367,-167.01705961,0.00019997,2]
[360689363,1746929468376,-299.74210653,0.00019997,2]
[360689364,1746929468385,-400.0,0.00019997,2]
[360689365,1746929468395,-151.0,0.00019997,2]
[360689366,1746929468404,-400.0,0.00019997,2]
[360689367,1746929468414,-400.0,0.00019997,2]
[360689368,1746929468423,-429.75,0.00019997,2]
[360689369,1746929468433,-400.0,0.00019997,2]
[360689370,1746929468445,-400.0,0.00019997,2]
[360689371,1746929468455,-400.0,0.00019997,2]
[360689372,1746929468465,-186.39466872,0.00019997,2]
[360689373,1746929468474,-400.0,0.00019997,2]
[360689374,1746929468484,-400.0,0.00019997,2]
[360689375,1746929468494,-400.0,0.00019997,2]
[360689376,1746929468506,-246.60330513,0.00019997,2]
[360689377,1746929468516,-151.0,0.00019997,2]
[360689378,1746929468525,-441.62908307,0.00019997,2]
[360689379,1746929468535,-276.85225618,0.00019997,2]
[360689380,1746929468546,-400.0,0.00019997,2]
[360689381,1746929468555,-400.0,0.00019997,2]
[360689382,1746929468564,-337.31371604,0.00019997,2]
[360689383,1746929468575,-365.00948222,0.00019997,2]
[360689384,1746929468584,-400.0,0.00019997,2]
[360689385,1746929468593,-400.0,0.00019997,2]
[360689386,1746929468602,-400.0,0.00019997,2]
[360689387,1746929468611,-400.0,0.00019997,2]
[360689388,1746929468621,-400.0,0.00019997,2]
[360689389,1746929468631,-400.0,0.00019997,2]
[360689390,1746929468640,-400.0,0.00019997,2]
[360689391,1746929468650,-400.0,0.00019997,2]
[360689392,1746929468659,-508.89242093,0.00019997,2]
[360689393,1746929468669,-128.85505823,0.00019997,2]
[360689394,1746929469040,-304.05494177,0.00019997,2]
[360689395,1746929469049,-432.91,0.00019997,2]
[360689396,1746929469059,-70.73843111,0.00019997,2]
[360689397,1746929469076,-362.17156889,0.00019997,2]
[360689398,1746929469085,-310.37434426,0.00019997,2]
[360689399,1746929469097,-89.62565574,0.00019997,2]
[360689400,1746929469106,-400.0,0.00019997,2]
[360689401,1746929469115,-432.91,0.00019997,2]
[360689402,1746929469124,-400.0,0.00019997,2]
[360689403,1746929469134,-400.0,0.00019997,2]
[360689404,1746929469143,-486.0,0.00019997,2]
[360689405,1746929469152,-400.0,0.00019997,2]
[360689406,1746929469162,-381.96434426,0.00019997,2]
[360689407,1746929469175,-104.03565574,0.00019997,2]
[360689408,1746929469184,-319.7280905,0.00019997,2]
[360689409,1746929469195,-486.0,0.00019997,2]
[360689410,1746929469204,-486.0,0.00019997,2]
[360689411,1746929469214,-478.96638248,0.00019997,2]
[360689412,1746929469224,-400.0,0.00019997,2]
[360689413,1746929469233,-400.0,0.00019997,2]
[360689414,1746929469243,-400.0,0.00019997,2]
[360689415,1746929469252,-400.0,0.00019997,2]
[360689416,1746929469262,-397.49861539,0.00019997,2]
[360689417,1746929469273,-2.50138461,0.00019997,2]
[360689418,1746929469283,-400.0,0.00019997,2]
[360689419,1746929469292,-400.0,0.00019997,2]
[360689420,1746929469301,-400.0,0.00019997,2]
[360689421,1746929469310,-400.0,0.00019997,2]
[360689422,1746929469319,-241.87428287,0.00019997,2]
[360689423,1746929469328,-400.0,0.00019997,2]
[360689424,1746929469338,-400.0,0.00019997,2]
[360689425,1746929469347,-400.0,0.00019997,2]
[360689426,1746929469356,-400.0,0.00019997,2]
[360689427,1746929469365,-400.0,0.00019997,2]
[360689428,1746929469374,-400.0,0.00019997,2]
[360689429,1746929469383,-391.06329741,0.00019997,2]
[360689430,1746929469392,-400.0,0.00019997,2]
[360689431,1746929469402,-400.0,0.00019997,2]
[360689432,1746929469411,-400.0,0.00019997,2]
[360689433,1746929469420,-400.0,0.00019997,2]
[360689434,1746929469430,-400.0,0.00019997,2]
[360689435,1746929469439,-400.0,0.00019997,2]
[360689436,1746929469450,-233.53898948,0.00019997,2]
[360689437,1746929469459,-400.0,0.00019997,2]
[360689438,1746929469469,-400.0,0.00019997,2]
[360689439,1746929469478,-400.0,0.00019997,2]
[360689440,1746929469488,-400.0,0.00019997,2]
[360689441,1746929469500,-586.11,0.00019997,2]
[360689442,1746929469509,-586.11,0.00019997,2]
[360689443,1746929469518,-586.11,0.00019997,2]
[360689444,1746929469528,-586.11,0.00019997,2]
[360689445,1746929469539,-411.24,0.00019997,2]
[360689446,1746929469548,-411.24,0.00019997,2]
[360689447,1746929469557,-411.24,0.00019997,2]
[360689448,1746929469567,-411.24,0.00019997,2]
[360689449,1746929469578,-151.0,0.00019997,2]
[360689450,1746929469588,-151.0,0.00019997,2]
[360689451,1746929469598,-151.0,0.00019997,2]
[360689452,1746929469607,-400.0,0.00019997,2]
[360689453,1746929469616,-258.34136241,0.00019997,2]
[360689454,1746929469626,-370.53347946,0.00019997,2]
[360689455,1746929469635,-163.15,0.00019997,2]
[360689456,1746929469645,-400.0,0.00019997,2]
[360689457,1746929469654,-400.0,0.00019997,2]
[360689458,1746929469664,-203.31741837,0.00019997,2]
[360689459,1746929469676,-196.68258163,0.00019997,2]
[360689460,1746929469686,-262.748854,0.00019997,2]
[360689461,1746929469697,-262.748854,0.00019997,2]
[360689462,1746929469706,-408.54659454,0.00019997,2]
[360689463,1746929469716,-151.0,0.00019997,2]
[360689464,1746929469725,-400.0,0.00019997,2]
[360689465,1746929469734,-400.0,0.00019997,2]
[360689466,1746929469744,-181.79471834,0.00019997,2]
[360689467,1746929469755,-240.034157,0.00019997,2]
[360689468,1746929469764,-240.034157,0.00019997,2]
[360689469,1746929469773,-217.98607547,0.00019997,2]
[360689470,1746929469783,-1374.67,0.00019997,2]
[360689471,1746929469792,-1374.67,0.00019997,2]
[360689472,1746929469801,-1374.67,0.00019997,2]
[360689473,1746929469811,-1374.67,0.00019997,2]
[360689474,1746929469820,-240.034157,0.00019997,2]
[360689475,1746929469829,-240.034157,0.00019997,2]
[360689476,1746929469838,-400.0,0.00019997,2]
[360689477,1746929469848,-400.0,0.00019997,2]
[360689478,1746929469857,-511.19982797,0.00019997,2]
[360689479,1746929469867,-495.77,0.00019997,2]
[360689480,1746929469876,-495.77,0.00019997,2]
[360689481,1746929469886,-495.77,0.00019997,2]
[360689482,1746929469895,-495.77,0.00019997,2]
[360689483,1746929469904,-554.07,0.00019997,2]
[360689484,1746929469914,-554.07,0.00019997,2]
[360689485,1746929469923,-554.07,0.00019997,2]
[360689486,1746929469932,-554.07,0.00019997,2]
[360689487,1746929469943,-400.0,0.00019997,2]
[360689488,1746929469952,-400.0,0.00019997,2]
[360689489,1746929469962,-400.0,0.00019997,2]
[360689490,1746929469971,-400.0,0.00019997,2]
[360689491,1746929469981,-400.0,0.00019997,2]
[360689492,1746929469990,-400.0,0.00019997,2]
[360689493,1746929469999,-400.0,0.00019997,2]
[360689494,1746929470009,-400.0,0.00019997,2]
[360689495,1746929470019,-400.0,0.00019997,2]
[360689496,1746929470028,-400.0,0.00019997,2]
[360689497,1746929470038,-311.1650821,0.00019997,2]
[360689498,1746929470047,-415.96,0.00019997,2]
[360689499,1746929470057,-400.0,0.00019997,2]
[360689500,1746929470066,-197.11375215,0.00019997,2]
[360689501,1746929470076,-512.94,0.00019997,2]
[360689502,1746929470085,-512.94,0.00019997,2]
[360689503,1746929470094,-512.94,0.00019997,2]
[360689504,1746929470104,-512.94,0.00019997,2]
[360689505,1746929470113,-400.0,0.00019997,2]
[360689506,1746929470122,-400.0,0.00019997,2]
[360689507,1746929470132,-400.0,0.00019997,2]
[360689508,1746929470141,-499.54,0.00019997,2]
[360689509,1746929470151,-1215.92,0.00019997,2]
[360689510,1746929470161,-1215.92,0.00019997,2]
[360689511,1746929470170,-400.0,0.00019997,2]
[360689512,1746929470180,-1215.92,0.00019997,2]
[360689513,1746929470190,-400.0,0.00019997,2]
[360689514,1746929470200,-400.0,0.00019997,2]
[360689515,1746929470210,-1215.92,0.00019997,2]
[360689516,1746929470219,-400.0,0.00019997,2]
[360689517,1746929470229,-400.0,0.00019997,2]
[360689518,1746929470239,-400.0,0.00019997,2]
[360689519,1746929470249,-400.0,0.00019997,2]
[360689520,1746929470259,-151.0,0.00019997,2]
[360689521,1746929470270,-424.26903377,0.00019997,2]
[360689522,1746929470281,-490.30592743,0.00019997,2]
[360689523,1746929470291,-400.0,0.00019997,2]
[360689524,1746929470301,-400.0,0.00019997,2]
[360689525,1746929470310,-400.0,0.00019997,2]
[360689526,1746929470319,-400.0,0.00019997,2]
[360689527,1746929470329,-400.0,0.00019997,2]
[360689528,1746929470339,-400.0,0.00019997,2]
[360689529,1746929470348,-400.0,0.00019997,2]
[360689530,1746929470357,-400.0,0.00019997,2]
[360689531,1746929470366,-400.0,0.00019997,2]
[360689532,1746929470376,-930.29,0.00019997,2]
[360689533,1746929470387,-255.28003603,0.00019997,2]
[360689534,1746929470396,-22278.8,0.00019997,2]
[360689535,1746929470406,-22278.8,0.00019997,2]
[360689536,1746929470415,-22278.8,0.00019997,2]
[360689537,1746929470425,-151.0,0.00019997,2]
[360689538,1746929470435,-883.22,0.00019997,2]
[360689539,1746929470446,-883.22,0.00019997,2]
[360689540,1746929470455,-883.22,0.00019997,2]
[360689541,1746929470465,-883.22,0.00019997,2]
[360689542,1746929470475,-400.0,0.00019997,2]
[360689543,1746929470484,-400.0,0.00019997,2]
[360689544,1746929470495,-400.0,0.00019997,2]
[360689545,1746929470507,-400.0,0.00019997,2]
[360689546,1746929470517,-400.0,0.00019997,2]
[360689547,1746929470528,-459.74,0.00019997,2]
[360689548,1746929470539,-354.47056369,0.00019997,2]
[360689549,1746929470548,-400.0,0.00019997,2]
[360689550,1746929470558,-400.0,0.00019997,2]
[360689551,1746929470567,-228.48026,0.00019997,2]
[360689552,1746929470578,-353.17830785,0.00019997,2]
[360689553,1746929470589,-455.54,0.00019997,2]
[360689554,1746929470598,-400.0,0.00019997,2]
[360689555,1746929470607,-481.41,0.00019997,2]
[360689556,1746929470616,-279.17363742,0.00019997,2]
[360689557,1746929470626,-400.0,0.00019997,2]
[360689558,1746929470635,-400.0,0.00019997,2]
[360689559,1746929470644,-400.0,0.00019997,2]
[360689560,1746929470653,-400.0,0.00019997,2]
[360689561,1746929470663,-400.0,0.00019997,2]
[360689562,1746929470672,-400.0,0.00019997,2]
[360689563,1746929470682,-400.0,0.00019997,2]
[360689564,1746929470691,-400.0,0.00019997,2]
[360689565,1746929470701,-400.0,0.00019997,2]
[360689566,1746929470710,-400.0,0.00019997,2]
[360689567,1746929470719,-400.0,0.00019997,2]
[360689568,1746929470729,-400.0,0.00019997,2]
[360689569,1746929470738,-400.0,0.00019997,2]
[360689570,1746929470747,-400.0,0.00019997,2]
[360689571,1746929470756,-400.0,0.00019997,2]
[360689572,1746929470766,-166.378399,0.00019997,2]
[360689573,1746929470775,-830.57,0.00019997,2]
[360689574,1746929470784,-391.99827507,0.00019997,2]
[360689575,1746929470793,-400.0,0.00019997,2]
[360689576,1746929470802,-358.11509722,0.00019997,2]
[360689577,1746929470810,-400.0,0.00019997,2]
[360689578,1746929470819,-400.0,0.00019997,2]
[360689579,1746929470828,-400.0,0.00019997,2]
[360689580,1746929470837,-166.378399,0.00019997,2]
[360689581,1746929470847,-400.0,0.00019997,2]
[360689582,1746929470856,-400.0,0.00019997,2]
[360689583,1746929470865,-400.0,0.00019997,2]
[360689584,1746929470875,-427.82500136,0.00019997,2]
[360689585,1746929470884,-510.14,0.00019997,2]
[360689586,1746929470893,-510.14,0.00019997,2]
[360689587,1746929470902,-510.14,0.00019997,2]
[360689588,1746929470912,-535.44184253,0.00019997,2]
[360689589,1746929470921,-400.0,0.00019997,2]
[360689590,1746929470930,-400.0,0.00019997,2]
[360689591,1746929470939,-400.0,0.00019997,2]
[360689592,1746929470950,-400.0,0.00019997,2]
[360689593,1746929470959,-400.0,0.00019997,2]
[360689594,1746929470968,-400.0,0.00019997,2]
[360689595,1746929470977,-400.0,0.00019997,2]
[360689596,1746929470987,-267.27029837,0.00019997,2]
[360689597,1746929470996,-400.0,0.00019997,2]
[360689598,1746929471005,-469.57,0.00019997,2]
[360689599,1746929471014,-483.93,0.00019997,2]
[360689600,1746929471023,-400.0,0.00019997,2]
[360689601,1746929471033,-400.05510776,0.00019997,2]
[360689602,1746929471042,-464.54,0.00019997,2]
[360689603,1746929471052,-464.54,0.00019997,2]
[360689604,1746929471061,-464.54,0.00019997,2]
[360689605,1746929471070,-400.0,0.00019997,2]
[360689606,1746929471080,-400.0,0.00019997,2]
[360689607,1746929471089,-400.0,0.00019997,2]
[360689608,1746929471099,-400.0,0.00019997,2]
[360689609,1746929471108,-400.0,0.00019997,2]
[360689610,1746929471117,-400.0,0.00019997,2]
[360689611,1746929471126,-400.0,0.00019997,2]
[360689612,1746929471135,-302.83450268,0.00019997,2]
[360689613,1746929471144,-400.0,0.00019997,2]
[360689614,1746929471154,-400.0,0.00019997,2]
[360689615,1746929471163,-400.0,0.00019997,2]
[360689616,1746929471173,-377.14,0.00019997,2]
[360689617,1746929471182,-1799.822809,0.00019997,2]
[360689618,1746929471192,-672.34,0.00019997,2]
[360689619,1746929471205,-672.34,0.00019997,2]
[360689620,1746929471214,-672.34,0.00019997,2]
[360689621,1746929471223,-672.34,0.00019997,2]
[360689622,1746929471233,-494.69,0.00019997,2]
[360689623,1746929471243,-494.69,0.00019997,2]
[360689624,1746929471252,-494.69,0.00019997,2]
[360689625,1746929471262,-1799.822809,0.00019997,2]
[360689626,1746929471272,-400.0,0.00019997,2]
[360689627,1746929471280,-400.0,0.00019997,2]
[360689628,1746929471290,-523.07289241,0.00019997,2]
[360689629,1746929471299,-400.0,0.00019997,2]
[360689630,1746929471309,-400.0,0.00019997,2]
[360689631,1746929471318,-400.0,0.00019997,2]
[360689632,1746929471328,-400.0,0.00019997,2]
[360689633,1746929471338,-422.467261,0.00019997,2]
[360689634,1746929471348,-400.0,0.00019997,2]
[360689635,1746929471357,-400.0,0.00019997,2]
[360689636,1746929471368,-400.0,0.00019997,2]
[360689637,1746929471378,-151.0,0.00019997,2]
[360689638,1746929471388,-400.0,0.00019997,2]
[360689639,1746929471397,-400.0,0.00019997,2]
[360689640,1746929471407,-1677.61,0.00019997,2]
[360689641,1746929471416,-151.0,0.00019997,2]
[360689642,1746929471426,-1677.61,0.00019997,2]
[360689643,1746929471435,-1677.61,0.00019997,2]
[360689644,1746929471446,-422.467261,0.00019997,2]
[360689645,1746929471456,-497.73,0.00019997,2]
[360689646,1746929471465,-400.0,0.00019997,2]
[360689647,1746929471474,-151.0,0.00019997,2]
[360689648,1746929471483,-400.0,0.00019997,2]
[360689649,1746929471493,-400.0,0.00019997,2]
[360689650,1746929471505,-151.0,0.00019997,2]
[360689651,1746929471514,-592.98,0.00019997,2]
[360689652,1746929471524,-400.0,0.00019997,2]
[360689653,1746929471534,-400.0,0.00019997,2]
[360689654,1746929471543,-400.0,0.00019997,2]
[360689655,1746929471554,-400.0,0.00019997,2]
[360689656,1746929471563,-400.0,0.00019997,2]
[360689657,1746929471573,-400.0,0.00019997,2]
[360689658,1746929471583,-435.2071635,0.00019997,2]
[360689659,1746929471593,-151.0,0.00019997,2]
[360689660,1746929471602,-1969.27,0.00019997,2]
[360689661,1746929471611,-1969.27,0.00019997,2]
[360689662,1746929471620,-400.0,0.00019997,2]
[360689663,1746929471629,-1969.27,0.00019997,2]
[360689664,1746929471640,-400.0,0.00019997,2]
[360689665,1746929471650,-400.0,0.00019997,2]
[360689666,1746929471659,-400.0,0.00019997,2]
[360689667,1746929471669,-296.1962522,0.00019997,2]
[360689668,1746929471678,-400.0,0.00019997,2]
[360689669,1746929471687,-400.0,0.00019997,2]
[360689670,1746929471699,-400.0,0.00019997,2]
[360689671,1746929471708,-655.17,0.00019997,2]
[360689672,1746929471718,-400.0,0.00019997,2]
[360689673,1746929471727,-400.0,0.00019997,2]
[360689674,1746929471736,-400.0,0.00019997,2]
[360689675,1746929471745,-400.0,0.00019997,2]
[360689676,1746929471754,-930.04,0.00019997,2]
[360689677,1746929471763,-930.04,0.00019997,2]
[360689678,1746929471772,-930.04,0.00019997,2]
[360689679,1746929471782,-400.0,0.00019997,2]
[360689680,1746929471932,-400.0,0.00019997,2]
[360689681,1746929471943,-400.0,0.00019997,2]
[360689682,1746929471955,-400.0,0.00019997,2]
[360689683,1746929471965,-542.69,0.00019997,2]
[360689684,1746929471975,-436.82,0.00019997,2]
[360689685,1746929471984,-3740.71,0.00019997,2]
[360689686,1746929471995,-3740.71,0.00019997,2]
[360689687,1746929472006,-3740.71,0.00019997,2]
[360689688,1746929472015,-553.01,0.00019997,2]
[360689689,1746929472024,-639.30387591,0.00019997,2]
[360689690,1746929472034,-1209.10941092,0.00019997,2]
[360689691,1746929472043,-151.0,0.00019997,2]
[360689692,1746929472052,-1051.17060473,0.00019998,5]
[360689693,1746929472061,-532.92477745,0.00019998,2]
[360689694,1746929472071,-500.0,0.00019998,2]
[360689695,1746929472080,-470.05,0.00019998,2]
[360689696,1746929472090,-470.05,0.00019998,2]
[360689697,1746929472099,-470.05,0.00019998,2]
[360689698,1746929472109,-470.05,0.00019998,2]
[360689699,1746929472118,-470.05,0.00019998,2]
[360689700,1746929472127,-400.0,0.00019998,2]
[360689701,1746929472136,-400.0,0.00019998,2]
[360689702,1746929472145,-400.0,0.00019998,2]
[360689703,1746929472154,-400.0,0.00019998,2]
[360689704,1746929472163,-400.0,0.00019998,2]
[360689705,1746929472173,-499.31,0.00019998,2]
[360689706,1746929472183,-499.31,0.00019998,2]
[360689707,1746929472192,-499.31,0.00019998,2]
[360689708,1746929472202,-499.31,0.00019998,2]
[360689709,1746929472211,-499.31,0.00019998,2]
[360689710,1746929472220,-407.75848333,0.00019998,2]
[360689711,1746929472230,-400.0,0.00019998,2]
[360689712,1746929472239,-417.66556148,0.00019998,2]
[360689713,1746929472248,-400.0,0.00019998,2]
[360689714,1746929472258,-400.0,0.00019998,2]
[360689715,1746929472267,-400.0,0.00019998,2]
[360689716,1746929472277,-400.0,0.00019998,2]
[360689717,1746929472286,-502.06086301,0.00019998,2]
[360689718,1746929472295,-151.0,0.00019998,2]
[360689719,1746929472305,-241.427652,0.00019998,2]
[360689720,1746929472314,-400.0,0.00019998,2]
[360689721,1746929472323,-400.0,0.00019998,2]
[360689722,1746929472332,-291.23115233,0.00019998,2]
[360689723,1746929472342,-419.58,0.00019998,2]
[360689724,1746929472351,-419.58,0.00019998,2]
[360689725,1746929472360,-419.58,0.00019998,2]
[360689726,1746929472369,-419.58,0.00019998,2]
[360689727,1746929472379,-419.58,0.00019998,2]
[360689728,1746929472388,-151.0,0.00019998,2]
[360689729,1746929472398,-151.0,0.00019998,2]
[360689730,1746929472408,-409.13228984,0.00019998,2]
[360689731,1746929472418,-411.54596174,0.00019998,2]
[360689732,1746929472427,-300.0,0.00019998,2]
[360689733,1746929472436,-215.051328,0.00019998,2]
[360689734,1746929472447,-558.53,0.00019998,2]
[360689735,1746929472456,-558.53,0.00019998,2]
[360689736,1746929472465,-558.53,0.00019998,2]
[360689737,1746929472475,-400.0,0.00019998,2]
[360689738,1746929472484,-400.0,0.00019998,2]
[360689739,1746929472495,-547.94589928,0.00019998,2]
[360689740,1746929472508,-492.36,0.00019998,2]
[360689741,1746929472518,-492.36,0.00019998,2]
[360689742,1746929472529,-151.0,0.00019998,2]
[360689743,1746929472538,-492.36,0.00019998,2]
[360689744,1746929472547,-400.0,0.00019998,2]
[360689745,1746929472557,-258.44569,0.00019998,2]
[360689746,1746929472566,-400.0,0.00019998,2]
[360689747,1746929472578,-400.0,0.00019998,2]
[360689748,1746929472588,-419.23188499,0.00019998,2]
[360689749,1746929472598,-151.0,0.00019998,2]
[360689750,1746929472607,-151.0,0.00019998,2]
[360689751,1746929472617,-400.0,0.00019998,2]
[360689752,1746929472627,-400.0,0.00019998,2]
[360689753,1746929472636,-400.0,0.00019998,2]
[360689754,1746929472646,-400.0,0.00019998,2]
[360689755,1746929472656,-400.0,0.00019998,2]
[360689756,1746929472667,-400.0,0.00019998,2]
[360689757,1746929472677,-400.0,0.00019998,2]
[360689758,1746929472687,-400.0,0.00019998,2]
[360689759,1746929472700,-429.75,0.00019998,2]
[360689760,1746929472710,-429.75,0.00019998,2]
[360689761,1746929472719,-429.75,0.00019998,2]
[360689762,1746929472729,-429.75,0.00019998,2]
[360689763,1746929472738,-400.0,0.00019998,2]
[360689764,1746929472748,-400.0,0.00019998,2]
[360689765,1746929472757,-400.0,0.00019998,2]
[360689766,1746929472767,-400.0,0.00019998,2]
[360689767,1746929472776,-151.0,0.00019998,2]
[360689768,1746929472785,-151.0,0.00019998,2]
[360689769,1746929472794,-400.0,0.00019998,2]
[360689770,1746929472803,-400.0,0.00019998,2]
[360689771,1746929472812,-400.0,0.00019998,2]
[360689772,1746929472822,-400.0,0.00019998,2]
[360689773,1746929472831,-400.0,0.00019998,2]
[360689774,1746929472839,-400.0,0.00019998,2]